bitfinex/quotes_SOLUSD_20251031
["timestamp","ask_amount","ask_price","bid_price","bid_amount"]
[1761883773649,7.63672184,186.6,186.55,0.67]
[1761883773844,7.63672184,186.59,186.55,0.67]
[1761883774632,7.63672184,186.58,186.48,20.592]
[1761883774838,7.63672184,186.57,186.52,0.67]
[1761883775037,0.61,186.61,186.53,17.42554953]
[1761883775038,7.63672184,186.59,186.53,17.42554953]
[1761883775431,7.63672184,186.59,186.54,0.67]
[1761883775948,7.63672184,186.58,186.54,0.67]
[1761883776254,7.63672184,186.56,186.52,9.78882769]
[1761883776647,7.63672184,186.56,186.53,0.67]
[1761883776852,0.61,186.6,186.53,0.67]
[1761883776853,20.592,186.59,186.54,17.42554953]
[1761883777038,7.63672184,186.6,186.54,17.42554953]
[1761883777239,7.63672184,186.59,186.54,0.67]
[1761883777454,7.63672184,186.58,186.54,0.67]
[1761883778356,0.61,186.6,186.52,9.78882769]
[1761883778557,7.63672184,186.55,186.51,0.67]
[1761883778852,20.592,186.58,186.52,8.30672184]
[1761883779054,7.63672184,186.56,186.52,0.67]
[1761883779360,7.63672184,186.55,186.5,8.30672184]
[1761883779557,26.56164442,186.58,186.5,8.30672184]
[1761883779558,7.63672184,186.54,186.5,0.67]
[1761883779734,25.95164442,186.58,186.49,9.78882769]
[1761883779735,0.61,186.57,186.49,9.78882769]
[1761883779936,7.63672184,186.54,186.49,17.42554953]
[1761883780135,7.63672184,186.54,186.49,18.09554953]
[1761883780350,7.63672184,186.55,186.5,0.67]
[1761883780554,7.63672184,186.54,186.5,0.67]
[1761883780960,7.63672184,186.53,186.47,9.78882769]
[1761883781165,51.99999999,186.66,186.48,9.78882769]
[1761883781380,2.80399809,186.83,186.53,0.28432314]
[1761883781381,7.63672184,186.76,186.53,0.28432314]
[1761883781586,50.1,186.78,186.5,0.28432314]
[1761883781587,7.63672184,186.71,186.56,0.28432314]
[1761883781876,7.63672184,186.7,186.59,9.78882769]
[1761883782168,0.61,186.74,186.61,9.78882769]
[1761883782372,7.63672184,186.72,186.66,7.63672184]
[1761883782667,7.63672184,186.7,186.65,9.78882769]
[1761883783050,7.63672184,186.7,186.65,8.30672184]
[1761883783284,7.63672184,186.7,186.59,13.9342577]
[1761883783285,0.61,186.76,186.67,9.78882769]
[1761883783570,7.63672184,186.71,186.67,9.78882769]
[1761883783739,7.63672184,186.71,186.66,0.67]
[1761883783740,7.63672184,186.7,186.62,5.35825712]
[1761883783935,5.45397231,186.78,186.66,9.78882769]
[1761883783936,0.61,186.75,186.66,9.78882769]
[1761883784143,0.61,186.75,186.64,9.78882769]
[1761883784358,7.63672184,186.71,186.64,10.45882769]
[1761883784568,0.61,186.75,186.66,9.78882769]
[1761883784758,7.63672184,186.71,186.66,9.78882769]
[1761883785077,21.202,186.75,186.68,9.78882769]
[1761883785264,20.592,186.77,186.7,9.78882769]
[1761883785443,7.63672184,186.75,186.7,9.78882769]
[1761883785646,7.63672184,186.75,186.7,10.45882769]
[1761883786154,7.63672184,186.76,186.71,0.67]
[1761883786452,0.71,186.78,186.71,0.67]
[1761883786763,0.61,186.77,186.69,17.42554953]
[1761883786966,26.04593433,186.78,186.69,10.45882769]
[1761883786967,20.692,186.78,186.69,10.45882769]
[1761883787180,0.61,186.87,186.72,9.78882769]
[1761883787374,95.17231594,186.94,186.72,9.78882769]
[1761883787375,14.01873931,186.94,186.73,0.81985572]
[1761883787545,0.7,186.87,186.73,1.48985572]
[1761883788066,7.63672184,186.81,186.75,9.78882769]
[1761883788241,0.7,186.87,186.75,9.78882769]
[1761883788443,7.63672184,186.79,186.75,9.78882769]
[1761883788642,7.63672184,186.78,186.74,9.78882769]
[1761883788870,7.63672184,186.77,186.73,9.78882769]
[1761883789274,20.592,186.82,186.7,0.14216157]
[1761883789472,0.7,186.81,186.69,0.67]
[1761883789678,7.63672184,186.75,186.69,8.30672184]
[1761883789970,7.63672184,186.72,186.68,9.78882769]
[1761883790154,0.7,186.8,186.68,9.78882769]
[1761883790357,1.99999999,186.88,186.78,9.78882769]
[1761883790358,5.35119807,186.88,186.78,9.78882769]
[1761883790555,7.63672184,186.83,186.78,10.45882769]
[1761883790773,7.63672184,186.84,186.79,9.78882769]
[1761883791177,7.63672184,186.84,186.78,8.30672184]
[1761883791178,7.63672184,186.84,186.8,0.67]
[1761883791379,13.37494586,186.92,186.81,17.42554953]
[1761883791576,7.63672184,186.87,186.83,9.78882769]
[1761883791883,0.7,186.91,186.81,7.63672184]
[1761883791884,7.63672184,186.88,186.81,7.63672184]
[1761883792050,7.63672184,186.9,186.83,9.78882769]
[1761883792255,0.7,186.91,186.83,9.78882769]
[1761883792456,7.63672184,186.89,186.83,9.78882769]
[1761883792857,7.63672184,186.87,186.8,7.63672184]
[1761883793164,18.72062826,186.96,186.78,10.45882769]
[1761883793165,5.35028123,186.91,186.82,7.63672184]
[1761883793471,7.63672184,186.89,186.83,9.78882769]
[1761883793673,7.63672184,186.9,186.83,17.42554953]
[1761883793875,26.64228123,186.91,186.83,9.78882769]
[1761883794068,7.63672184,186.88,186.8,9.78882769]
[1761883794277,7.63672184,186.84,186.79,0.67]
[1761883794466,7.63672184,186.84,186.77,8.30672184]
[1761883794779,7.63672184,186.85,186.78,7.63672184]
[1761883794976,0.7,186.87,186.78,0.67]
[1761883795149,12.98860838,186.85,186.78,8.30672184]
[1761883795554,7.63672184,186.83,186.76,9.78882769]
[1761883795855,7.63672184,186.82,186.76,9.78882769]
[1761883796270,7.63672184,186.81,186.76,9.78882769]
[1761883796668,7.63672184,186.81,186.76,10.45882769]
[1761883796979,7.63672184,186.79,186.73,9.78882769]
[1761883797183,0.7,186.8,186.72,0.67]
[1761883797402,7.63672184,186.78,186.72,0.67]
[1761883797961,7.63672184,186.77,186.72,0.67]
[1761883799866,12.99094455,186.77,186.72,0.67]
[1761883800064,34.67558544,186.8,186.72,0.67]
[1761883800065,7.63672184,186.76,186.72,0.67]
[1761883800368,7.63672184,186.75,186.7,61.7]
[1761883800586,25.94629142,186.77,186.7,61.7]
[1761883800587,7.63672184,186.74,186.7,61.7]
[1761883800903,7.63672184,186.75,186.7,61.7]
[1761883801090,7.63672184,186.78,186.71,18.08554953]
[1761883801273,25.94510782,186.81,186.73,9.78882769]
[1761883801472,25.94510782,186.81,186.74,7.63672184]
[1761883801473,28.22872184,186.81,186.74,7.63672184]
[1761883801670,7.63672184,186.76,186.7,62.36]
[1761883801875,7.63672184,186.73,186.7,61.7]
[1761883802197,20.592,186.78,186.67,62.36]
[1761883802364,7.63672184,186.77,186.7,17.42554953]
[1761883802566,7.63672184,186.78,186.72,9.78882769]
[1761883802782,25.94503505,186.81,186.72,9.78882769]
[1761883802978,7.63672184,186.78,186.72,72.14882769]
[1761883803499,7.63672184,186.8,186.74,9.78882769]
[1761883803892,7.63672184,186.8,186.75,0.66]
[1761883804501,7.63672184,186.81,186.75,0.66]
[1761883804706,11.78882768,186.92,186.76,7.63672184]
[1761883804707,13.37917108,186.86,186.76,7.63672184]
[1761883804915,25.94388654,186.85,186.78,7.63672184]
[1761883805098,25.94388654,186.85,186.76,61.7]
[1761883805099,7.63672184,186.83,186.77,0.66]
[1761883805266,7.63672184,186.82,186.77,0.66]
[1761883805987,7.63672184,186.87,186.8,7.63672184]
[1761883806187,20.592,186.86,186.8,7.63672184]
[1761883806387,20.592,186.86,186.8,10.44882769]
[1761883806711,20.592,186.86,186.8,17.42554953]
[1761883806912,20.592,186.86,186.81,0.66]
[1761883807113,7.63672184,186.91,186.83,7.63672184]
[1761883807301,11.58523516,186.9,186.84,0.66]
[1761883807611,7.63672184,186.9,186.84,0.66]
[1761883807814,7.63672184,186.88,186.81,0.66]
[1761883808030,0.7,186.89,186.74,11.11807627]
[1761883808031,7.63672184,186.83,186.74,11.11807627]
[1761883808308,7.63672184,186.82,186.75,23.44028632]
[1761883808517,7.63672184,186.81,186.75,10.44882769]
[1761883808690,7.63672184,186.82,186.75,18.08554953]
[1761883808888,7.63672184,186.82,186.75,23.44028664]
[1761883809390,7.63672184,186.81,186.75,22.78028664]
[1761883809716,7.63672184,186.81,186.76,0.66]
[1761883809934,7.63672184,186.82,186.76,6.01444303]
[1761883810217,20.592,186.86,186.79,7.63672184]
[1761883810423,7.63672184,186.85,186.78,7.63672184]
[1761883810590,7.63672184,186.83,186.76,17.42554953]
[1761883810923,7.63672184,186.84,186.78,0.66]
[1761883811737,7.63672184,186.83,186.78,0.66]
[1761883811941,7.63672184,186.81,186.75,12.99143502]
[1761883812151,0.7,186.87,186.76,10.44882769]
[1761883812152,0.7,186.86,186.76,10.44882769]
[1761883812442,7.63672184,186.83,186.76,10.44882769]
[1761883812612,7.63672184,186.8,186.77,10.44882769]
[1761883812808,7.63672184,186.8,186.77,9.78882769]
[1761883813020,7.63672184,186.8,186.76,9.78882769]
[1761883813419,0.7,186.84,186.77,0.66]
[1761883813615,7.63672184,186.81,186.77,0.66]
[1761883814216,7.63672184,186.8,186.77,0.66]
[1761883814418,6.05248044,186.83,186.74,0.66]
[1761883814633,7.63672184,186.79,186.75,0.66]
[1761883814835,0.7,186.83,186.75,0.66]
[1761883815035,3.9571412,186.84,186.76,17.42554953]
[1761883815239,7.63672184,186.83,186.78,9.78882769]
[1761883815424,7.63672184,186.83,186.77,0.66]
[1761883815738,7.63672184,186.83,186.78,10.44882769]
[1761883815942,28.22872184,186.85,186.8,9.78882769]
[1761883816115,7.63672184,186.86,186.81,0.66]
[1761883816446,7.63672184,186.85,186.81,0.66]
[1761883816655,6.0495961,186.93,186.82,17.42554953]
[1761883816865,7.63672184,186.88,186.82,17.42554953]
[1761883817141,7.63672184,186.88,186.84,9.78882769]
[1761883817333,7.63672184,186.88,186.85,0.66]
[1761883817719,20.592,186.9,186.82,7.63672184]
[1761883817920,7.63672184,186.88,186.85,0.66]
[1761883818454,28.22872184,186.89,186.85,0.66]
[1761883819132,7.63672184,186.89,186.85,0.66]
[1761883819443,7.63672184,186.91,186.85,13.64849512]
[1761883819746,7.63672184,186.9,186.85,6.01177328]
[1761883819943,7.63672184,186.9,186.86,0.66]
[1761883820145,0.7,186.94,186.86,0.66]
[1761883820146,7.63672184,186.91,186.86,0.66]
[1761883820316,7.63672184,186.93,186.87,9.78882769]
[1761883820517,7.63672184,186.93,186.88,0.66]
[1761883820931,21.292,186.96,186.88,0.66]
[1761883821336,26.64081292,186.96,186.88,0.66]
[1761883821549,7.63672184,186.93,186.88,0.66]
[1761883822055,26.61120732,186.95,186.88,0.66]
[1761883822239,14.04051786,186.98,186.88,0.66]
[1761883822418,14.04051786,186.98,186.89,9.78882769]
[1761883822419,7.63672184,186.94,186.89,9.78882769]
[1761883822623,7.63672184,186.94,186.85,0.7]
[1761883822624,7.63672184,186.91,186.85,0.7]
[1761883822820,7.63672184,186.89,186.83,9.78882769]
[1761883823018,7.63672184,186.89,186.83,17.42554953]
[1761883823217,7.63672184,186.9,186.84,7.63672184]
[1761883823433,0.67,186.92,186.84,8.33672184]
[1761883823641,7.63672184,186.91,186.84,8.33672184]
[1761883823832,7.63672184,186.9,186.84,8.33672184]
[1761883824130,7.63672184,186.9,186.75,0.7]
[1761883824131,7.63672184,186.85,186.75,0.7]
[1761883824321,7.63672184,186.78,186.71,12.99262136]
[1761883824524,7.63672184,186.78,186.72,0.7]
[1761883824773,7.63672184,186.73,186.68,0.7]
[1761883825124,7.63672184,186.75,186.69,7.63672184]
[1761883825548,6.03437431,186.99,186.68,0.7]
[1761883825549,7.63672184,186.78,186.72,7.63672184]
[1761883825931,7.63672184,186.78,186.73,0.7]
[1761883826159,7.63672184,186.78,186.73,8.33672184]
[1761883826361,7.63672184,186.78,186.73,13.69204188]
[1761883826670,7.63672184,186.77,186.74,0.7]
[1761883827242,20.592,186.83,186.69,0.7]
[1761883827243,7.63672184,186.75,186.69,0.7]
[1761883827477,7.63672184,186.73,186.69,0.7]
[1761883827674,7.63672184,186.72,186.67,9.78882769]
[1761883827839,7.63672184,186.72,186.67,10.48882769]
[1761883828045,7.63672184,186.71,186.66,9.78882769]
[1761883828355,7.63672184,186.71,186.67,0.7]
[1761883828861,7.63672184,186.7,186.65,10.46882769]
[1761883829057,7.63672184,186.7,186.67,0.68]
[1761883829249,13.38626586,186.76,186.67,0.68]
[1761883829250,21.252,186.76,186.67,0.68]
[1761883829456,5.05965987,186.7,186.67,0.68]
[1761883829872,5.05965987,186.71,186.67,0.68]
[1761883830041,5.05965987,186.71,186.67,6.03691738]
[1761883830242,5.05965987,186.71,186.68,0.68]
[1761883830868,5.05965987,186.7,186.68,0.68]
[1761883831170,5.05965987,186.7,186.66,0.68]
[1761883831752,5.05965987,186.7,186.62,7.42683823]
[1761883831753,5.05965987,186.68,186.64,5.35774354]
[1761883831944,0.66,186.73,186.64,5.35774354]
[1761883831945,5.05965987,186.69,186.64,5.35774354]
[1761883832151,5.05965987,186.69,186.65,0.68]
[1761883832971,5.05965987,186.69,186.63,9.78882769]
[1761883832972,5.05965987,186.67,186.63,9.78882769]
[1761883833345,0.66,186.69,186.63,0.68]
[1761883833652,0.66,186.69,186.62,6.89098999]
[1761883833653,5.05965987,186.66,186.62,6.89098999]
[1761883833868,5.05965987,186.64,186.62,6.89098999]
[1761883834776,5.05965987,186.63,186.62,6.89098999]
[1761883836561,11.07785522,186.63,186.62,6.89098999]
[1761883837348,28.45391214,186.63,186.51,0.68]
[1761883837552,5.05965987,186.55,186.51,0.68]
[1761883838071,5.05965987,186.54,186.51,0.68]
[1761883839353,0.66,186.59,186.51,0.68]
[1761883839354,5.05965987,186.52,186.51,0.68]
[1761883839563,5.05965987,186.52,186.47,15.83140571]
[1761883839877,5.05965987,186.51,186.48,0.68]
[1761883841362,5.05965987,186.52,186.48,6.04231511]
[1761883841765,5.05965987,186.52,186.49,0.68]
[1761883842282,5.05965987,186.5,186.46,6.04292435]
[1761883842695,0.66,186.54,186.47,0.68]
[1761883842696,5.05965987,186.51,186.47,0.68]
[1761883843206,5.05965987,186.52,186.48,9.78882769]
[1761883843363,5.05965987,186.51,186.48,9.78882769]
[1761883843692,5.05965987,186.51,186.47,0.68]
[1761883843693,5.05965987,186.51,186.49,0.68]
[1761883845786,5.05965987,186.5,186.47,9.78882769]
[1761883846088,5.05965987,186.5,186.47,0.68]
[1761883846281,5.05965987,186.5,186.48,0.68]
[1761883846461,5.05965987,186.49,186.46,0.68]
[1761883846663,5.05965987,186.49,186.47,0.68]
[1761883846862,5.36051901,186.55,186.47,0.68]
[1761883846863,5.05965987,186.52,186.47,0.68]
[1761883847283,5.05965987,186.51,186.47,0.68]
[1761883847689,5.05965987,186.49,186.47,0.68]
[1761883847992,5.05965987,186.5,186.47,0.68]
[1761883848577,5.05965987,186.5,186.47,6.04259412]
[1761883849185,5.05965987,186.51,186.48,0.68]
[1761883851276,5.05965987,186.5,186.48,0.68]
[1761883851793,5.05965987,186.5,186.48,6.0424472]
[1761883851974,0.66,186.54,186.48,6.0424472]
[1761883852180,5.05965987,186.5,186.48,6.0424472]
[1761883852391,5.05965987,186.51,186.48,6.0424472]
[1761883852591,25.95194814,186.57,186.49,0.68]
[1761883852796,5.05965987,186.51,186.48,5.3624472]
[1761883853291,5.71965987,186.56,186.48,5.3624472]
[1761883853292,5.71965987,186.56,186.48,6.0424472]
[1761883853495,0.66,186.55,186.48,6.0424472]
[1761883853876,6.0206632,186.55,186.46,0.68]
[1761883854406,9.78882769,186.64,186.44,5.05965987]
[1761883854407,9.78882769,186.61,186.44,5.36365586]
[1761883854696,0.66,186.74,186.6,5.05965987]
[1761883854904,1.99999999,186.77,186.61,0.68]
[1761883854905,5.05965987,186.72,186.61,0.68]
[1761883855069,0.66,186.77,186.61,21.272]
[1761883855070,5.05965987,186.75,186.61,21.272]
[1761883855275,0.1,186.82,186.7,5.05965987]
[1761883855276,0.66,186.81,186.7,5.05965987]
[1761883855469,5.71965987,186.81,186.7,5.05965987]
[1761883855786,5.35331905,186.8,186.7,5.05965987]
[1761883855993,0.66,186.79,186.7,5.05965987]
[1761883856207,20.592,186.77,186.67,5.05965987]
[1761883856407,20.592,186.77,186.67,0.68]
[1761883856408,25.65165987,186.77,186.67,0.68]
[1761883856610,0.66,186.76,186.67,5.73965987]
[1761883856798,5.05965987,186.75,186.65,9.78882769]
[1761883856995,5.05965987,186.75,186.6,0.53590568]
[1761883856996,5.05965987,186.7,186.6,5.3589742]
[1761883857199,20.592,186.71,186.64,0.68]
[1761883857397,20.592,186.71,186.61,5.73965987]
[1761883857598,0.66,186.7,186.61,5.73965987]
[1761883857802,0.66,186.7,186.62,5.05965987]
[1761883858023,6.01621429,186.7,186.62,5.05965987]
[1761883858221,6.01629111,186.7,186.62,5.05965987]
[1761883858397,0.66,186.7,186.62,5.05965987]
[1761883859526,6.01621096,186.7,186.62,5.05965987]
[1761883859865,5.05965987,186.69,186.61,6.028715]
[1761883859993,5.75965987,186.69,186.61,5.72965987]
[1761883860188,5.356231,186.7,186.58,0.67]
[1761883860189,5.05965987,186.67,186.58,0.67]
[1761883860419,21.292,186.68,186.59,0.67]
[1761883860616,5.75965987,186.67,186.59,0.67]
[1761883861132,5.75965987,186.67,186.55,0.67]
[1761883861133,5.05965987,186.65,186.55,0.67]
[1761883861327,5.05965987,186.63,186.55,0.67]
[1761883861620,5.05965987,186.61,186.52,5.72965987]
[1761883861812,0.7,186.66,186.56,5.36001869]
[1761883862019,25.65165987,186.63,186.55,14.84848756]
[1761883862544,18.74876861,186.68,186.55,14.84848756]
[1761883862545,0.7,186.68,186.58,9.78882769]
[1761883862695,20.592,186.67,186.6,5.05965987]
[1761883862898,20.592,186.67,186.6,5.72965987]
[1761883863606,21.292,186.69,186.6,5.72965987]
[1761883863810,5.05965987,186.68,186.6,5.72965987]
[1761883864020,5.05965987,186.68,186.6,11.08848626]
[1761883864021,10.41648484,186.68,186.6,11.08848626]
[1761883864223,5.05965987,186.63,186.55,0.67]
[1761883864406,5.05965987,186.63,186.55,5.72965987]
[1761883864605,5.75965987,186.63,186.55,5.72965987]
[1761883865225,20.592,186.65,186.54,9.78882769]
[1761883865226,5.05965987,186.61,186.54,9.78882769]
[1761883865521,21.292,186.62,186.54,14.84848756]
[1761883865522,26.35165987,186.62,186.54,14.84848756]
[1761883865691,18.74872554,186.68,186.52,18.76474372]
[1761883865692,0.7,186.65,186.56,14.84848756]
[1761883865897,20.592,186.65,186.58,5.05965987]
[1761883866098,20.592,186.64,186.59,10.41900388]
[1761883866394,1.99999999,186.77,186.59,10.41900388]
[1761883866395,5.05965987,186.69,186.62,5.05965987]
[1761883866617,25.65165987,186.69,186.62,5.05965987]
[1761883866819,25.65165987,186.69,186.62,5.72965987]
[1761883867325,20.592,186.69,186.63,5.72965987]
[1761883868018,25.65165987,186.69,186.61,5.05965987]
[1761883868198,5.05965987,186.65,186.57,5.72965987]
[1761883868402,5.05965987,186.64,186.58,9.78882769]
[1761883869301,5.05965987,186.63,186.58,5.35957942]
[1761883869841,5.05965987,186.63,186.58,6.02957942]
[1761883871150,0.7,186.65,186.58,6.02957942]
[1761883871151,5.05965987,186.64,186.58,6.02957942]
[1761883871440,5.05965987,186.61,186.55,6.03031109]
[1761883871911,5.05965987,186.61,186.53,71.48882769]
[1761883871912,5.05965987,186.59,186.53,9.78882769]
[1761883872114,5.05965987,186.6,186.53,15.51848756]
[1761883872319,5.05965987,186.6,186.53,10.45882769]
[1761883872514,5.05965987,186.58,186.53,6.03105595]
[1761883873130,0.7,186.6,186.53,5.36105595]
[1761883873445,5.05965987,186.61,186.55,5.36049316]
[1761883873729,5.05965987,186.61,186.55,10.42015303]
[1761883874032,21.292,186.62,186.55,5.36049316]
[1761883874218,5.05965987,186.6,186.54,0.67]
[1761883874422,39.34468506,186.64,186.5,71.48882769]
[1761883874423,5.05965987,186.59,186.51,15.82047049]
[1761883874725,5.05965987,186.58,186.51,6.0316428]
[1761883874941,5.05965987,186.58,186.48,0.67]
[1761883874942,5.05965987,186.54,186.48,0.67]
[1761883875141,0.7,186.57,186.47,6.03278979]
[1761883875355,5.05965987,186.53,186.47,6.03278979]
[1761883876057,25.95224535,186.56,186.48,0.67]
[1761883876220,5.05965987,186.53,186.48,0.67]
[1761883876918,5.05965987,186.52,186.47,5.36278804]
[1761883877130,5.05965987,186.53,186.47,5.36278804]
[1761883877441,0.7,186.55,186.47,6.02278804]
[1761883877619,5.05965987,186.53,186.47,6.02278804]
[1761883877818,5.05965987,186.52,186.47,0.66]
[1761883878025,5.05965987,186.51,186.45,9.78882769]
[1761883878250,5.05965987,186.49,186.44,5.36340552]
[1761883878421,5.05965987,186.49,186.43,15.15272677]
[1761883878744,5.05965987,186.49,186.43,15.81272677]
[1761883878938,5.05965987,186.5,186.43,20.87238664]
[1761883879268,5.05965987,186.49,186.44,0.66]
[1761883879422,5.05965987,186.56,186.43,0.66]
[1761883879423,0.7,186.51,186.43,0.66]
[1761883879622,26.65366051,186.51,186.43,5.71965987]
[1761883879942,5.05965987,186.5,186.43,5.71965987]
[1761883880244,5.05965987,186.49,186.43,5.71965987]
[1761883880423,5.05965987,186.48,186.43,0.66]
[1761883880833,5.05965987,186.48,186.39,18.77783142]
[1761883880834,5.75965987,186.47,186.4,15.50848756]
[1761883881215,5.05965987,186.46,186.4,15.50848756]
[1761883881421,5.05965987,186.46,186.41,5.36451907]
[1761883882062,5.05965987,186.46,186.41,6.02451907]
[1761883882248,5.05965987,186.44,186.38,5.71965987]
[1761883882456,5.75965987,186.45,186.38,5.71965987]
[1761883882866,25.9550435,186.47,186.37,9.78882769]
[1761883882867,5.05965987,186.43,186.37,10.44882769]
[1761883883166,20.592,186.43,186.38,0.66]
[1761883883476,20.592,186.43,186.39,5.36509469]
[1761883883767,0.7,186.46,186.39,5.36509469]
[1761883883768,20.592,186.46,186.41,5.05965987]
[1761883883939,20.592,186.46,186.42,0.66]
[1761883884878,5.05965987,186.48,186.43,5.36394357]
[1761883885035,25.65165987,186.49,186.43,5.36394357]
[1761883885230,5.05965987,186.44,186.37,9.78882769]
[1761883885432,21.292,186.48,186.38,0.66]
[1761883885650,5.05965987,186.46,186.39,5.05965987]
[1761883885842,5.05965987,186.45,186.4,0.66]
[1761883886440,5.05965987,186.44,186.4,0.66]
[1761883886955,5.05965987,186.44,186.4,6.02459593]
[1761883887254,5.05965987,186.44,186.41,0.66]
[1761883887456,5.05965987,186.42,186.38,5.36521774]
[1761883887761,5.05965987,186.43,186.39,9.78882769]
[1761883887960,5.05965987,186.42,186.37,0.66]
[1761883888143,5.05965987,186.42,186.37,10.44882769]
[1761883888342,0.7,186.46,186.37,10.44882769]
[1761883888572,5.05965987,186.42,186.37,10.44882769]
[1761883888727,5.05965987,186.41,186.37,10.44882769]
[1761883889055,21.292,186.46,186.37,10.44882769]
[1761883889056,5.05965987,186.4,186.37,0.66]
[1761883889266,2.93719366,186.4,186.36,5.36570036]
[1761883889437,2.93719366,186.4,186.36,6.06570036]
[1761883890058,0.69,186.43,186.37,0.7]
[1761883890257,5.05965987,186.41,186.37,0.7]
[1761883890443,5.05965987,186.4,186.35,0.7]
[1761883890645,5.05965987,186.4,186.35,5.75965987]
[1761883890847,5.05965987,186.4,186.35,0.7]
[1761883891046,5.05965987,186.4,186.36,6.06595836]
[1761883891433,7.66019898,186.4,186.37,0.7]
[1761883891637,21.282,186.47,186.37,18.14902667]
[1761883891859,7.66019898,186.45,186.39,7.66019898]
[1761883892155,7.66019898,186.46,186.4,17.44902667]
[1761883892346,7.66019898,186.46,186.4,7.66019898]
[1761883892669,0.69,186.5,186.41,0.7]
[1761883892851,7.66019898,186.46,186.41,0.7]
[1761883893441,7.66019898,186.46,186.41,6.06429827]
[1761883893641,7.66019898,186.46,186.42,0.7]
[1761883894047,20.592,186.48,186.42,0.7]
[1761883894237,7.66019898,186.46,186.42,0.7]
[1761883894659,7.66019898,186.46,186.4,6.06475638]
[1761883894856,21.282,186.48,186.4,6.06475638]
[1761883894857,7.66019898,186.45,186.4,6.06475638]
[1761883895356,7.66019898,186.45,186.4,15.85358407]
[1761883895542,7.66019898,186.45,186.41,0.7]
[1761883896861,7.66019898,186.46,186.41,8.36019898]
[1761883897057,7.66019898,186.46,186.42,0.7]
[1761883897964,7.66019898,186.44,186.4,15.85358884]
[1761883898357,7.66019898,186.44,186.41,0.7]
[1761883899343,20.592,186.48,186.42,7.66019898]
[1761883899549,7.66019898,186.46,186.42,0.7]
[1761883899772,21.282,186.48,186.42,0.7]
[1761883899936,7.66019898,186.45,186.42,0.7]
[1761883900263,7.66019898,186.45,186.41,15.15331151]
[1761883900469,7.66019898,186.45,186.41,15.85331151]
[1761883900848,7.66019898,186.45,186.41,0.7]
[1761883901050,8.35019898,186.45,186.4,5.36476536]
[1761883901249,8.35019898,186.45,186.4,6.06476536]
[1761883901473,7.66019898,186.45,186.4,6.06476536]
[1761883901643,6.05293467,186.47,186.4,6.06476536]
[1761883901971,1.99999999,186.58,186.4,6.06476536]
[1761883901972,26.23803991,186.66,186.46,7.66019898]
[1761883902140,42.10882769,186.74,186.47,0.53627929]
[1761883902141,3.97516435,186.65,186.47,0.53627929]
[1761883902340,7.66019898,186.6,186.54,7.66019898]
[1761883902567,7.66019898,186.6,186.5,10.32502071]
[1761883902776,7.66019898,186.6,186.54,7.66019898]
[1761883902973,0.69,186.61,186.51,0.7]
[1761883903274,8.35019898,186.61,186.55,7.66019898]
[1761883903845,7.66019898,186.59,186.53,7.66019898]
[1761883904171,7.66019898,186.54,186.49,9.78882769]
[1761883904340,0.69,186.6,186.47,9.78882769]
[1761883904341,20.592,186.58,186.47,9.78882769]
[1761883904541,20.592,186.58,186.44,0.7]
[1761883904542,7.66019898,186.54,186.49,9.78882769]
[1761883904845,20.592,186.58,186.47,7.66019898]
[1761883904846,7.66019898,186.53,186.47,7.66019898]
[1761883905051,7.66019898,186.54,186.48,7.66019898]
[1761883905355,7.66019898,186.54,186.47,9.78882769]
[1761883905552,7.66019898,186.54,186.48,7.66019898]
[1761883906070,7.66019898,186.53,186.47,10.48882769]
[1761883906675,8.35019898,186.53,186.47,9.78882769]
[1761883906861,7.66019898,186.52,186.47,9.78882769]
[1761883907063,8.35019898,186.53,186.47,9.78882769]
[1761883907260,8.35019898,186.53,186.46,13.02327953]
[1761883907261,7.66019898,186.52,186.46,7.66019898]
[1761883907452,7.66019898,186.52,186.46,22.81206787]
[1761883908577,7.66019898,186.52,186.46,17.44902667]
[1761883908953,7.66019898,186.52,186.46,9.78882769]
[1761883909393,26.7938891,186.61,186.46,9.78882769]
[1761883909394,5.35934401,186.59,186.51,7.66019898]
[1761883909581,7.66019898,186.58,186.51,13.02182147]
[1761883909789,20.592,186.56,186.51,13.72182147]
[1761883910077,20.592,186.56,186.51,13.02182147]
[1761883910284,0.69,186.59,186.53,9.78882769]